Cogmind - Beta 13 @@@ ROGUE MODE // 2024.04.24 @ 13:24:42 Player: Gabe+Kate4EVR Result: Destroyed by G-47 Trooper with Particle Gun Performance ------------- Evolutions (3) 1500 Regions Visited (7) 1400 Robots Destroyed (137) 685 Value Destroyed (4958) 4958 Prototype IDs (8) 160 Alien Tech Used (0) 0 Bonus (2404) 2404 TOTAL SCORE: 11107 Bonus ------- Triggered High Security 500 High Alert Combat Kills 882 Follower Combat Kills 322 Entered Garrisons 200 Used RIF Installer 500 Cogmind --------- Core Integrity 0/700 Matter 240/300 Energy 300/300 System Corruption 7% Temperature Cool (9) Movement Walking (470) Ox5 Location -7/Factory Parts ------- > --- POWER (1) -------- Enhanced Nuclear Core > --- PROPULSION (4) --- Aluminum Leg > --- UTILITY (4) ------ High-capacity Storage Unit Advanced Melee Analysis Suite Core Analyzer Relay Coupler [Grunt] (31) > --- WEAPON (4) ------- Powered Hammer Powered Hammer Powered Hammer Powered Hammer > --- INVENTORY (20) --- Enhanced Nuclear Core Hybrid Antimatter Reactor Improved Cooling System Improved Kinecellerator Reaction Control System Point Defense System Relay Coupler [NC] (30) Relay Coupler [Hunter] (18) Trap Extractor (0/4) Wave Gun Mass Driver Rocket Launcher Peak State ------------ > --- POWER ------------ Hybrid Antimatter Reactor > --- PROPULSION ------- Aluminum Leg Aluminum Leg Titanium Leg Advanced VSS Leg > --- UTILITY ---------- High-capacity Storage Unit Advanced Melee Analysis Suite Core Analyzer Microactuators > --- WEAPON ----------- Powered Hammer Powered Hammer Axe Makeshift Sword > --- INVENTORY -------- Hybrid Deuterium Engine Aluminum Leg Aluminum Leg Aluminum Leg Improved Cooling System Improved Kinecellerator Improved Kinecellerator Reaction Control System Improved Light Armor Plating Point Defense System Relay Coupler [NC] Relay Coupler [Grunt] Relay Coupler [Hunter] Trap Extractor Wave Gun Mass Driver Rocket Launcher Remote Datajack Powered Hammer Powered Hammer [Rating: 55] Favorites ----------- Power Cooled Ion Engine Engine Cooled Ion Engine Power Core Nuclear Core Reactor Hybrid Antimatter Reactor Propulsion Aluminum Leg Treads Light Treads Leg Aluminum Leg Wheel Armored Wheel Hover Unit Improved Hover Unit Flight Unit VTOL Module Utility High-capacity Storage Unit Device Improved Actuator Array Storage High-capacity Storage Unit Processor Core Analyzer Hackware Relay Coupler [Grunt] Protection Improved Light Armor Plating Weapon Makeshift Sword Energy Gun Small Laser Energy Cannon Beam Cannon Ballistic Gun Gauss Rifle Ballistic Cannon Light Cannon Launcher Mini Grenade Launcher Special Weapon Remote Datajack Impact Weapon Powered Hammer Slashing Weapon Makeshift Sword Special Melee Weapon Improved Datajack Build | -11 -10 -9 -9 -8 -7 -7 -7 ------- Run | Yrd Mat Mat Min Mat Fac Gar Fac Slots Evolved 6 | . . 2 . 2 2 . . Power . | . . . . . . . . Propulsion 2 | . . 2 . . . . . Utility 2 | . . . . 2 . . . Weapon 2 | . . . . . 2 . . Parts Attached 211 | 6 18 41 6 53 5 68 14 Power 24 | 1 1 4 . 9 . 8 1 Engine 14 | 1 1 4 . 4 . 4 . Core 9 | . . . . 5 . 3 1 Reactor 1 | . . . . . . 1 . Propulsion 81 | 2 4 20 4 21 . 26 4 Treads 8 | 2 . . . 1 . 5 . Leg 36 | . 2 . . 18 . 12 4 Wheel 16 | . . 2 4 1 . 9 . Hover 8 | . . 8 . . . . . Flight 13 | . 2 10 . 1 . . . Utility 52 | 1 9 7 . 13 1 18 3 Device 26 | . 3 2 . 8 1 11 1 Storage 6 | 1 2 1 . 1 . 1 . Processor 7 | . 1 1 . 2 . 3 . Hackware 1 | . . . . . . . 1 Protection 12 | . 3 3 . 2 . 3 1 Artifact . | . . . . . . . . Weapon 54 | 2 4 10 2 10 4 16 6 Energy Gun 8 | 1 1 4 . . 1 1 . Energy Cannon 3 | . 1 1 . 1 . . . Ballistic Gun 18 | 1 . 3 1 6 1 6 . Ballistic Cannon 6 | . 2 1 . . 2 1 . Launcher 4 | . . 1 1 1 . 1 . Special Weapon 1 | . . . . . . . 1 Impact Weapon 5 | . . . . . . . 5 Slashing Weapon 8 | . . . . 2 . 6 . Piercing Weapon . | . . . . . . . . Special Melee Weapon 1 | . . . . . . 1 . Unidentified Prototypes 5 | . . 2 . 1 . 1 1 Parts Lost 61 | . . 11 . 16 . 24 10 Power 6 | . . 1 . 2 . 3 . Propulsion 35 | . . 6 . 10 . 14 5 Utility 8 | . . 1 . 3 . 2 2 Weapon 12 | . . 3 . 1 . 5 3 Highest Loss Streak 10 | . . 2 . 6 . 7 10 To Critical Strikes . | . . . . . . . . Average Slot Usage (%) 89 | . 98 81 100 85 97 90 98 Engine 5 | . 14 11 11 4 7 1 . Core 2 | . . . . 3 . 4 2 Treads 2 | . 12 . . . . 1 . Leg 12 | . 5 . . 24 30 15 29 Wheel 5 | . . 3 33 2 . 9 . Hover 2 | . . 9 3 . . . . Flight 4 | . 9 13 7 . . . . Device 6 | . 8 4 . 7 14 8 6 Storage 9 | . 14 11 11 9 7 7 7 Processor 7 | . 1 . 11 10 7 10 15 Protection 3 | . 2 6 . 4 . 2 . Energy Gun 2 | . 6 5 . . 3 . . Ballistic Gun 8 | . 2 9 16 6 11 9 . Ballistic Cannon 4 | . 15 5 . . 4 2 . Slashing Weapon 7 | . . . . 10 7 12 14 Naked Turns . | . . . . . . . . Heaviest Build 79 | 12 22 26 23 32 36 79 66 Greatest Support 60 | 40 40 26 40 55 47 60 55 Greatest Overweight (x) 7 | . 4 5 1 7 . 4 1 Average Overweight (x) . | . . . . . . 1 1 Largest Inventory Capacity 20 | 8 10 10 10 10 10 20 20 Average Capacity 13 | 6 8 8 10 10 10 18 20 Most Carried 20 | 6 10 10 10 10 10 20 20 Average Carried 12 | 3 7 7 9 9 9 17 19 Final Capacity 20 | 8 8 10 10 10 10 20 20 Final Carried 20 | 6 8 10 10 10 10 20 12 Class Distribution -------------------- 35% | Scavenger-Gladiator 32% | Mutant 21% | Scavenger-Mutant 5% | Scavenger-Tank Dominant Class ---------------- Mutant | -10/Materials Mutant | -9/Materials Scavenger-Mutant | -9/Mines Scavenger-Mutant | -8/Materials Scavenger-Gunner | -7/Factory Scavenger-Gladiator | -7/Garrison Scavenger-Gladiator | -7/Factory Resources | -11 -10 -9 -9 -8 -7 -7 -7 ----------- Run | Yrd Mat Mat Min Mat Fac Gar Fac Matter Collected 3615 | 237 279 1072 210 619 . 1168 30 Remotely . | . . . . . . . . Salvage Created 5332 | . 373 1254 97 1835 73 1512 188 Parts 277 | . 22 88 7 98 4 52 6 Haulers Intercepted 7 | . 1 5 . 1 . . . Recyclers Shooed 5 | . . 4 . 1 . . . Parts Field Recycled . | . . . . . . . . Retrieved Matter . | . . . . . . . . Parts Self-Destructed . | . . . . . . . . Prevented . | . . . . . . . . Kills | -11 -10 -9 -9 -8 -7 -7 -7 ------- Run | Yrd Mat Mat Min Mat Fac Gar Fac Combat Hostiles Destroyed 101 | . 8 31 2 26 1 30 3 Melee 38 | . . . . 22 . 15 1 Guns 29 | . 3 13 2 2 1 8 . Cannons 27 | . 5 17 . 2 . 3 . AOE 5 | . . 1 . . . 4 . Classes Destroyed 16 | . 5 4 2 1 . 3 1 Worker 8 | . . 4 . 4 . . . Builder 2 | . . 2 . . . . . Tunneler 2 | . . . 2 . . . . Hauler 7 | . 1 5 . 1 . . . Recycler 9 | . 2 1 . 5 . . 1 Operator 2 | . . 1 . 1 . . . Watcher 7 | . 2 3 . 2 . . . Swarmer 26 | . 6 15 . 4 . 1 . Cutter 3 | . . . . . . 3 . Grunt 42 | . 2 10 1 16 . 11 2 Duelist 2 | . . . . . . 2 . Protector 1 | . . . . . . . 1 Sentry 20 | . . 6 . 4 1 9 . Specialist 1 | . . . . . . 1 . Hunter 5 | . . . . 2 . 3 . Assembled 1 | . . . 1 . . . . Best Kill Streak 6 | . 4 6 2 6 1 5 3 Combat Bots Only 6 | . 3 5 2 6 1 5 3 Max Kills in Single Turn 1 | . 1 1 1 1 1 1 1 Gunslinging . | . . . . . . . . Exploded 1 | . . 1 . . . 1 . Melee 1 | . . . . 1 . 1 1 Uniques/NPCs Destroyed . | . . . . . . . . Combat | -11 -10 -9 -9 -8 -7 -7 -7 -------- Run | Yrd Mat Mat Min Mat Fac Gar Fac Hostile Shots Fired 1011 | . 53 164 1 213 18 482 80 Missed 313 | . 19 60 . 59 8 156 11 Damage Taken 8580 | . 308 1318 66 2201 89 3191 1407 Core 1582 | . 51 358 8 454 7 441 263 Absorbed by Shields 177 | . . . . . 38 139 . Redirected to Shielding 59 | . . 59 . . . . . Core Remaining (%) 51 | 100 79 . 8 17 . . . Volleys Fired 280 | . 33 149 18 38 3 38 1 Largest 4 | . 2 2 2 2 3 4 1 Hottest 181 | . 100 108 53 88 111 181 5 Shots Fired 543 | . 64 292 36 45 9 96 1 Gun 302 | . 12 168 29 33 9 51 . Cannon 222 | . 52 122 . 12 . 36 . Launcher 18 | . . 2 7 . . 9 . Special 1 | . . . . . . . 1 Kinetic 338 | . 35 152 29 33 6 83 . Thermal 186 | . 29 138 . 12 3 4 . Explosive 18 | . . 2 7 . . 9 . Electromagnetic . | . . . . . . . . Robot Hit Streak 18 | . 9 18 3 4 4 15 7 Robot Miss Streak 6 | . 5 6 2 4 5 4 . Penetration Max 1 | . . . . . . 1 . Secondary Targets 1 | . . . . . . 1 . Max Gunslinging Chain 1 | . . . . . . 1 . Shots Hit Robots 447 | . 31 160 11 81 6 131 27 Core Hits 221 | . 14 64 8 42 3 83 7 Critical Kills 2 | . . 1 . . . . 1 Critical Parts Destroyed 1 | . . . . . . . 1 Critical Strikes 26 | . 2 6 . 1 . 13 4 Destroy 1 | . . 1 . . . . . Blast 9 | . 2 5 . . . 2 . Smash 3 | . . . . . . . 3 Sever 13 | . . . . 1 . 11 1 Melee Attacks 292 | . . . . 85 . 171 36 Impact 28 | . . . . . . . 28 Slashing 262 | . . . . 85 . 169 8 Piercing . | . . . . . . . . Sneak Attacks 15 | . . . . 12 . 2 1 Combat Hostiles . | . . . . . . . . Follow-up Attacks 20 | . . . . . . 12 8 Damage Inflicted 11609 | . 570 2469 152 2928 99 4315 1076 Guns 2438 | . 81 1064 152 283 99 759 . Cannons 2564 | . 489 1405 . 145 . 525 . Explosions 539 | . . . . . . 539 . Melee 6061 | . . . . 2500 . 2492 1069 Ramming 7 | . . . . . . . 7 Kinetic 3526 | . 329 1521 152 283 47 1194 . Thermal 1476 | . 241 948 . 145 52 90 . Explosive 539 | . . . . . . 539 . Electromagnetic . | . . . . . . . . Impact 897 | . . . . . . . 897 Slashing 5164 | . . . . 2500 . 2492 172 Piercing . | . . . . . . . . Highest Corruption 7 | . . . . 1 . . 7 Average Corruption 1 | . . . . 1 . . 5 Corruption Purged . | . . . . . . . . Corruption Blocked . | . . . . . . . . Effects 2 | . . . . 1 . . 1 Message Errors 1 | . . . . . . . 1 Matter Fused 1 | . . . . 1 . . . Overload Shots . | . . . . . . . . Overflow Damage 295 | . 14 16 . 239 . 3 23 Projectiles 30 | . 14 16 . . . . . Explosions . | . . . . . . . . Melee 265 | . . . . 239 . 3 23 Knockbacks 16 | . 2 6 . . . 2 6 Impact 6 | . . . . . . . 6 Kinetic 9 | . 2 5 . . . 2 . Secondary 1 | . . 1 . . . . . Self-Inflicted Damage 180 | . . 58 59 . 55 8 . Shots 7 | . . 2 3 . 1 1 . Rammed . | . . . . . . . . Targets Rammed 2 | . . . . . . . 2 Kicked 2 | . . . . . . . 2 Crushed . | . . . . . . . . Highest Temperature 366 | . 234 366 9 69 97 321 4 Average Temperature 57 | . 77 53 9 23 52 61 2 Received Heat Transfer 2534 | . 66 291 20 801 16 962 378 Effects 2 | . . 1 . . . 1 . Energy Bleed 1 | . . . . . . 1 . Matter Decay 1 | . . 1 . . . . . Siege Activations . | . . . . . . . . Robots Corrupted . | . . . . . . . . Combat Hostiles . | . . . . . . . . Parts Fried 4 | . . . . . . . 4 Impact Corruptions 2 | . . . . . . . 2 Robots Melted . | . . . . . . . . Combat Hostiles . | . . . . . . . . Parts Melted 4 | . 1 3 . . . . . Heat Transferred 3133 | . 518 2045 . 259 111 200 . Parts Sabotaged . | . . . . . . . . Parts Stolen . | . . . . . . . . Parts Stripped . | . . . . . . . . Power Chain Reactions . | . . . . . . . . Alert | -11 -10 -9 -9 -8 -7 -7 -7 ------- Run | Yrd Mat Mat Min Mat Fac Gar Fac Peak Influence 2760 | . 211 597 284 515 276 2760 1685 Initial 1449 | . . 28 205 110 188 193 1449 Average 795 | . 77 408 251 287 235 1315 1572 Maximum Alert Level 5 | . 1 2 1 2 1 5 5 Low Security (%) 17 | 100 81 11 . 39 27 . . Level 1 24 | . 18 20 100 38 72 21 . Level 2 21 | . . 68 . 22 . 7 . Level 3 6 | . . . . . . 14 . Level 4 10 | . . . . . . 18 49 Level 5 16 | . . . . . . 37 . High Security 2 | . . . . . . . 50 Max Security . | . . . . . . . . Squads Dispatched 16 | . . 3 1 3 . . 9 Investigation 6 | . . 2 1 2 . . 1 Extermination . | . . . . . . . . Reinforcement 2 | . . 1 . 1 . . . Assault 8 | . . . . . . . 8 Garrison . | . . . . . . . . Intercept . | . . . . . . . . Searches Triggered . | . . . . . . . . Construction Impeded . | . . . . . . . . Haulers Reinforced . | . . . . . . . . Active Scanning Responses . | . . . . . . . . Cargo Convoy Interrupts . | . . . . . . . . Stealth | -11 -10 -9 -9 -8 -7 -7 -7 --------- Run | Yrd Mat Mat Min Mat Fac Gar Fac Distress Signals 6 | . . 2 . 2 . . 2 Communications Jammed . | . . . . . . . . Distress Signals . | . . . . . . . . Times Spotted 194 | . 14 53 4 42 1 38 42 Peak Tracking Total 24 | . 4 6 3 7 1 5 24 Tactical Retreats 18 | . 3 3 1 5 . 4 2 Traps | -11 -10 -9 -9 -8 -7 -7 -7 ------- Run | Yrd Mat Mat Min Mat Fac Gar Fac Traps Triggered 8 | . . . . 2 . 4 2 Indirectly . | . . . . . . . . Trap Hack Attempts . | . . . . . . . . Triggered . | . . . . . . . . Disarmed . | . . . . . . . . Reprogrammed . | . . . . . . . . Reused . | . . . . . . . . Traps Extracted . | . . . . . . . . Installed . | . . . . . . . . Triggered . | . . . . . . . . Machines | -11 -10 -9 -9 -8 -7 -7 -7 ---------- Run | Yrd Mat Mat Min Mat Fac Gar Fac Machines Disabled 13 | . . 4 . 2 1 6 . Max in Single Turn 1 | . . 1 . 1 1 1 . Garrison Relay 5 | . . . . . . 5 . Machines Repaired . | . . . . . . . . Machines Dismantled . | . . . . . . . . Machines Sabotaged . | . . . . . . . . Overloaded Fab Kills . | . . . . . . . . Hacking | -11 -10 -9 -9 -8 -7 -7 -7 --------- Run | Yrd Mat Mat Min Mat Fac Gar Fac Machines Accessed 21 | . 6 8 1 2 1 2 1 Terminals 17 | . 6 6 1 2 . 2 . Fabricators . | . . . . . . . . Repair Stations 1 | . . . . . . . 1 Recycling Units 1 | . . 1 . . . . . Scanalyzers 1 | . . 1 . . . . . Garrison Access 1 | . . . . . 1 . . Total Hacks 55 | . 16 23 2 5 2 4 3 Successful 18 | . 5 10 . . 1 1 1 Failed 36 | . 10 13 2 5 1 3 2 Catastrophic 7 | . 1 4 . 2 . . . Database Lockouts 1 | . 1 . . . . . . Manual 34 | . 16 11 2 5 . . . Terminals 42 | . 16 15 2 5 . 4 . Fabricators . | . . . . . . . . Repair Stations 3 | . . . . . . . 3 Recycling Units 3 | . . 3 . . . . . Scanalyzers 5 | . . 5 . . . . . Garrison Access 2 | . . . . . 2 . . Terminal Hacks 10 | . 5 4 . . . 1 . Part Schematic 2 | . 1 1 . . . . . Prototype ID Bank 2 | . 2 . . . . . . Emergency Access Points 1 | . . . . . . 1 . Terminal Index 2 | . 1 1 . . . . . Alert Level 1 | . . 1 . . . . . Hauler Manifests 1 | . 1 . . . . . . Zone Layout 1 | . . 1 . . . . . Fabricator Hacks . | . . . . . . . . Repair Station Hacks 1 | . . . . . . . 1 Scan Component 1 | . . . . . . . 1 Recycling Unit Hacks 1 | . . 1 . . . . . Report Inventory 1 | . . 1 . . . . . Scanalyzer 5 | . . 5 . . . . . Insert Component 2 | . . 2 . . . . . Analyze 3 | . . 3 . . . . . Garrison Access Hacks 1 | . . . . . 1 . . Unlock Access 1 | . . . . . 1 . . Unauthorized Hacks . | . . . . . . . . Terminals . | . . . . . . . . Fabricators . | . . . . . . . . Repair Stations . | . . . . . . . . Recycling Units . | . . . . . . . . Scanalyzers . | . . . . . . . . Garrison Access . | . . . . . . . . Data Cores Recovered 1 | . . 1 . . . . . Used . | . . . . . . . . Hacking Detections 18 | . 5 6 1 2 1 2 1 Full Trace Events 8 | . 2 2 1 2 . . 1 Feedback Events 1 | . . . . 1 . . . Corruption 1 | . . . . 1 . . . Feedback Blocked . | . . . . . . . . Robot Schematics Acquired . | . . . . . . . . Robots Built . | . . . . . . . . Authchips . | . . . . . . . . Time . | . . . . . . . . Total Robot Build Rating . | . . . . . . . . Part Schematics Acquired 4 | . 1 3 . . . . . Parts Built . | . . . . . . . . Authchips . | . . . . . . . . Time . | . . . . . . . . Total Part Build Rating . | . . . . . . . . Parts Repaired . | . . . . . . . . Time . | . . . . . . . . Parts Recycled . | . . . . . . . . Recycled Matter . | . . . . . . . . Retrieved Matter . | . . . . . . . . Retrieved Components . | . . . . . . . . Parts Scanalyzed 2 | . . 2 . . . . . Part Schematics Acquired 2 | . . 2 . . . . . Parts Damaged . | . . . . . . . . Bothacking | -11 -10 -9 -9 -8 -7 -7 -7 ------------ Run | Yrd Mat Mat Min Mat Fac Gar Fac Used RIF Installer 1 | . . . . . . 1 . Robots Hacked 2 | . . . . . . 1 1 Non-combat . | . . . . . . . . Combat 2 | . . . . . . 1 1 Robot Hacks Applied 3 | . . . . . . 2 1 parse_system 3 | . . . . . . 2 1 Relay Couplers Released 19 | . . . . . . 19 . Machine Destruction 19 | . . . . . . 19 . Attached 1 | . . . . . . . 1 Fabnet Peak Effective % . | . . . . . . . . Robots Rewired 8 | . . . . . . 8 . Allies Hacked . | . . . . . . . . Hacks Repelled . | . . . . . . . . Allies | -11 -10 -9 -9 -8 -7 -7 -7 -------- Run | Yrd Mat Mat Min Mat Fac Gar Fac Total Allies 10 | . . . . . . 10 . Largest Group 5 | . . . . . . 5 5 Highest-Rated Group 205 | . . . . . . 205 144 Highest-Rated Ally 95 | . . . . . . 95 40 Total Orders . | . . . . . . . . Ally Attacks 73 | . . . . . . 20 53 Total Damage 1468 | . . . . . . 371 1097 Kills 11 | . . . . . . 2 9 Allies Corrupted . | . . . . . . . . Allies Melted 1 | . . . . . . . 1 Intel | -11 -10 -9 -9 -8 -7 -7 -7 ------- Run | Yrd Mat Mat Min Mat Fac Gar Fac Robot Analysis Total . | . . . . . . . . Derelict Logs Recovered 1 | . . . 1 . . . . Drone Launches . | . . . . . . . . Drone Recoveries . | . . . . . . . . Exploration | -11 -10 -9 -9 -8 -7 -7 -7 ------------- Run | Yrd Mat Mat Min Mat Fac Gar Fac Turns Passed 9732 | 72 1066 2242 248 1245 198 4109 552 Spaces Moved 5332 | 44 565 1495 219 637 160 1969 243 Core 43 | 11 . . . 32 . . . Treads 378 | 33 233 . . 2 . 110 . Legs 2070 | . 110 . . 514 160 1043 243 Wheels 1474 | . . 356 219 83 . 816 . Hover 581 | . . 581 . . . . . Flight 786 | . 222 558 . 6 . . . Fastest Speed 26 | 50 117 26 80 80 112 90 187 Average Speed 138 | 132 153 109 83 132 112 161 187 Slowest Speed 435 | 160 360 435 95 400 112 400 190 Overloaded Moves . | . . . . . . . . Propulsion Burnouts . | . . . . . . . . Robots Hopped 8 | . . 8 . . . . . Cave-ins Triggered . | . . . . . . . . Exploration Rate (%) 36 | 4 56 62 42 33 3 81 9 Regions Visited 7 Branch Regions 1 Pre-discovered Areas . | . . . . . . . . Known Exits Taken 4 | . 1 1 1 . 1 . . Unknown Exits Taken 2 | 1 . . . 1 . . . Scrap Searched 1 | . . . 1 . . . . Spaces Dug 78 | . . 10 36 . . 31 1 Terrain Destroyed 200 | . . 52 79 . 18 50 1 Melee 22 | . . . . . . 21 1 Projectile 2 | . . . . . . 2 . AOE 176 | . . 52 79 . 18 27 . Terrain Rammed . | . . . . . . . . Walls Destroyed . | . . . . . . . . Machines Disabled . | . . . . . . . . Actions | -11 -10 -9 -9 -8 -7 -7 -7 --------- Run | Yrd Mat Mat Min Mat Fac Gar Fac Total 6879 | 55 705 1811 248 924 172 2651 313 Wait 439 | . 60 75 . 54 . 249 1 Move 5310 | 43 564 1480 218 636 159 1967 243 Hop 6 | . . 6 . . . . . Pick Up 107 | 6 9 21 1 17 2 44 7 Fast Attach 98 | 6 13 21 2 27 3 23 3 Attach 37 | . . 12 . 3 2 12 8 Detach 16 | . 3 7 . 1 1 4 . Swap 78 | . 5 9 4 23 . 34 3 Drop 152 | . 18 31 5 42 2 42 12 Fire 280 | . 33 149 18 38 3 38 1 Melee 253 | . . . . 83 . 147 23 Ram . | . . . . . . . . Kick 2 | . . . . . . . 2 Crush . | . . . . . . . . Escape Stasis 27 | . . . . . . 17 10 Rewire 74 | . . . . . . 74 . Trap . | . . . . . . . . Miscellaneous . | . . . . . . . . Route ------- -11/Scrapyard -10/Materials (discovered 2 exits: *Mat x2) -9/Materials (discovered 2 exits: *Mat / *Min) -9/Mines -8/Materials -7/Factory -7/Garrison (discovered 3 exits: *Fac x3) -7/Factory History --------- Turn | Location | Event 2 | -11/Scrapyard | Met Revision 17 3 | -11/Scrapyard | Discovered new exit (range 16) 73 | -11/Scrapyard | Entered Materials 311 | -10/Materials | Build established: Mutant 312 | -10/Materials | Discovered new exit (range 9) 818 | -10/Materials | Discovered new exit (range 13) 947 | -10/Materials | Identified exit to Materials 1073 | -10/Materials | Central database locked down 1139 | -10/Materials | Entered another Materials area 1139 | -9/Materials | Evolved 2 slots: Propulsion x2 1410 | -9/Materials | Discovered new exit (range 13) 1742 | -9/Materials | Core integrity fell below 50% 2103 | -9/Materials | Core integrity fell below 20% 2415 | -9/Materials | Discovered new exit (range 16) 3244 | -9/Materials | Identified exit to Materials 3318 | -9/Materials | Identified exit to Mines 3381 | -9/Materials | Entered Mines 3382 | -9/Mines | Assembled infested the area 3387 | -9/Mines | Assisted by a Guerilla fighting off Assembled 3487 | -9/Mines | Build established: Scavenger-Mutant 3585 | -9/Mines | A weapon hastily lodged in a ceiling crevice suddenly fell to the ground 3629 | -9/Mines | Entered Materials 3629 | -8/Materials | Evolved 2 slots: Utility x2 3764 | -8/Materials | Lost 4 parts (1p3n) 4339 | -8/Materials | Core integrity fell below 50% 4369 | -8/Materials | Lost 5 parts (4n1u) 4475 | -8/Materials | Lost 6 parts (1p2n2u1w) 4702 | -8/Materials | Core integrity fell below 20% 4854 | -8/Materials | Discovered new exit (range 5) 4874 | -8/Materials | Entered Factory 4874 | -7/Factory | Evolved 2 slots: Weapon x2 5071 | -7/Factory | Identified exit to Garrison 5072 | -7/Factory | Entered Garrison 5171 | -7/Garrison | Lost 4 parts (2n2u) 5466 | -7/Garrison | Build established: Scavenger-Tank 5950 | -7/Garrison | Triggered checkpoint 5958 | -7/Garrison | Build established: Scavenger-Gladiator 5993 | -7/Garrison | Triggered checkpoint 6097 | -7/Garrison | Garrison Relay disabled 6202 | -7/Garrison | Triggered checkpoint 6210 | -7/Garrison | Discovered new exit (range 10) 6310 | -7/Garrison | Garrison Relay disabled 6409 | -7/Garrison | Discovered new exit (range 12) 6498 | -7/Garrison | Triggered checkpoint 6511 | -7/Garrison | Garrison Relay disabled 6580 | -7/Garrison | Triggered checkpoint 6864 | -7/Garrison | Triggered checkpoint 6900 | -7/Garrison | Lost 3 parts (2n1w) 6933 | -7/Garrison | Lost 3 parts (1p2n) 7060 | -7/Garrison | Garrison Relay disabled 7111 | -7/Garrison | Core integrity fell below 50% 7175 | -7/Garrison | Lost 7 parts (5n2w) 7299 | -7/Garrison | Found embedded Infiltrators 7950 | -7/Garrison | Discovered new exit (range 11) 7994 | -7/Garrison | Triggered checkpoint 8026 | -7/Garrison | Garrison Relay disabled 8196 | -7/Garrison | Triggered checkpoint 8473 | -7/Garrison | Lost 4 allies 8496 | -7/Garrison | Lost 3 parts (1p2n) 8690 | -7/Garrison | Installed Relay Interface Framework 9181 | -7/Garrison | Entered Factory 9181 | -7/Factory | Accompanied by 5 allies 9453 | -7/Factory | High security lockdown imminent 9533 | -7/Factory | High security lockdown engaged 9688 | -7/Factory | Lost 3 allies 9723 | -7/Factory | Core integrity fell below 20% 9733 | -7/Factory | Destroyed by G-47 Trooper with Particle Gun Last Messages --------------- 09713_ P-60 Hacker unfolds itself. 09713_ H-55 Commando unfolds itself. 09716_ L-41 Fighter knocked back. 09716_ Powered Hammer follow-up attack on L-41 Fighter. 09717_ Slug penetrates Wall. 09719_ Aluminum Leg destroyed. 09719_ L-41 Fighter knocked back. 09720_ Titanium Leg destroyed. 09723_ Adv. VSS Leg destroyed. 09724_ Slug penetrates Wall. 09725_ Mak. Sword destroyed. 09727_ Slug penetrates Wall. 09728_ Imp. Light Armor Plating destroyed. 09729_ Jacked G-47 Trooper... >>parse_system Reading system data... 09730_ Remote Datajack destroyed. 09730_ Aluminum Leg destroyed. 09732_ Aluminum Leg severed. 09733_ BZ/DEX9|9Y 8PVZI,K T%W|N0G8DZ